fUSD/lending_fUSD_20250906
["ID","MTS","AMOUNT","RATE_DAILY","PERIOD"]
[383838116,1757139061655,-400.0,0.00054794,120]
[383838117,1757139061670,-400.0,0.00054794,120]
[383838118,1757139061684,-400.0,0.00054794,120]
[383838119,1757139061700,-400.0,0.00054794,120]
[383838120,1757139061715,-400.0,0.00054794,120]
[383838121,1757139061730,-400.0,0.00054794,120]
[383838122,1757139061745,-400.0,0.00054794,120]
[383838123,1757139061761,-400.0,0.00054794,120]
[383838124,1757139061776,-500.85,0.00054794,120]
[383838125,1757139061790,-400.0,0.00054794,120]
[383838126,1757139061806,-400.0,0.00054794,120]
[383838127,1757139061823,-400.0,0.00054794,120]
[383838128,1757139061841,-400.0,0.00054794,120]
[383838129,1757139061856,-400.0,0.00054794,120]
[383838130,1757139061872,-400.0,0.00054794,120]
[383838131,1757139061888,-402.21788409,0.00054794,120]
[383838132,1757139061903,-400.0,0.00054794,120]
[383838133,1757139061919,-400.0,0.00054794,120]
[383838134,1757139061935,-400.0,0.00054794,120]
[383838135,1757139061951,-400.98447756,0.00054794,5]
[383838136,1757139061966,-400.0,0.00054794,120]
[383838137,1757139061986,-400.0,0.00054794,120]
[383838138,1757139062001,-1000.0,0.00054794,120]
[383838139,1757139062016,-224.65677456,0.00054794,120]
[383838140,1757139062031,-406.30728057,0.00054794,120]
[383838141,1757139062046,-400.0,0.00054794,120]
[383838142,1757139062061,-404.85077501,0.00054794,120]
[383838143,1757139062076,-400.0,0.00054794,120]
[383838144,1757139062091,-400.0,0.00054794,120]
[383838145,1757139062106,-403.79104641,0.00054794,120]
[383838146,1757139062121,-400.0,0.00054794,120]
[383838147,1757139062137,-400.0,0.00054794,120]
[383838148,1757139062153,-400.0,0.00054794,120]
[383838149,1757139062169,-400.0,0.00054794,120]
[383838150,1757139062185,-413.68619784,0.00054794,120]
[383838151,1757139062200,-400.0,0.00054794,120]
[383838152,1757139062215,-403.00165426,0.00054794,120]
[383838153,1757139062230,-400.0,0.00054794,120]
[383838154,1757139062245,-400.0,0.00054794,120]
[383838155,1757139062262,-400.0,0.00054794,120]
[383838156,1757139062277,-400.0,0.00054794,120]
[383838157,1757139062292,-403.30458217,0.00054794,120]
[383838158,1757139062307,-400.0,0.00054794,120]
[383838159,1757139062322,-400.0,0.00054794,120]
[383838160,1757139062337,-400.0,0.00054794,120]
[383838161,1757139062352,-400.0,0.00054794,120]
[383838162,1757139062366,-400.0,0.00054794,120]
[383838163,1757139062383,-400.0,0.00054794,120]
[383838164,1757139062399,-400.0,0.00054794,120]
[383838165,1757139062409,-400.0,0.00054794,120]
[383838166,1757139062419,-401.392623,0.00054794,2]
[383838167,1757139062431,-400.0,0.00054794,120]
[383838168,1757139062602,-400.0,0.00054794,120]
[383838169,1757139062680,-400.0,0.00054794,120]
[383838170,1757139062714,-400.0,0.00054794,120]
[383838171,1757139062725,-400.0,0.00054794,120]
[383838172,1757139062735,-400.0,0.00054794,120]
[383838173,1757139062746,-400.0,0.00054794,120]
[383838174,1757139062755,-400.0,0.00054794,120]
[383838175,1757139062765,-400.55137997,0.00054794,120]
[383838176,1757139062776,-400.0,0.00054794,120]
[383838177,1757139062786,-400.0,0.00054794,120]
[383838178,1757139062796,-1108.26,0.00054794,120]
[383838179,1757139062806,-400.0,0.00054794,120]
[383838180,1757139062816,-400.0,0.00054794,120]
[383838181,1757139062826,-400.0,0.00054794,120]
[383838182,1757139062836,-403.87505756,0.00054794,120]
[383838183,1757139062846,-150.00000001,0.00054795,30]
[383838184,1757139062856,-162.25757601,0.00054795,30]
[383838185,1757139062866,-150.0,0.00054795,30]
[383838186,1757139062876,-150.0,0.00054795,30]
[383838187,1757139062887,-152.91455282,0.00054795,30]
[383838188,1757139062897,-156.89004854,0.00054795,30]
[383838189,1757139062907,-162.61937545,0.00054795,30]
[383838190,1757139062916,-222.49552364,0.00054795,30]
[383838191,1757139062926,-150.0,0.00054795,30]
[383838192,1757139062936,-2000.0,0.00054795,30]
[383838193,1757139062945,-2000.0,0.00054795,30]
[383838194,1757139062955,-5100.0,0.0005488,37]
[383838195,1757139062966,-386.14770535,0.000549,2]
[383838196,1757139062975,-1127.0,0.00054917,120]
[383838197,1757139062985,-500.0,0.00054999,120]
[383838198,1757139062995,-500.0,0.00054999,120]
[383838199,1757139063005,-500.0,0.00054999,120]
[383838200,1757139063015,-500.0,0.00054999,120]
[383838201,1757139063025,-500.0,0.00054999,120]
[383838202,1757139063035,-285.05341248,0.00054999,120]
[383838203,1757139063045,-187.69756161,0.00055,120]
[383838204,1757139063055,-83590.0,0.00055,15]
[383838205,1757139063066,-541.52172566,0.00055,120]
[383838206,1757139063076,-710036.50615774,0.00055,120]
[383838207,1757139063085,-213.06998276,0.00055,120]
[383838208,1757139063095,-500.0,0.00055,30]
[383838209,1757139063105,-10000.0,0.00055,120]
[383838210,1757139063115,-1000.0,0.00055,120]
[383838211,1757139063124,-500000.0,0.00055,120]
[383838212,1757139063134,-8924.8,0.00055,30]
[383838213,1757139063144,-3220.43,0.00055,30]
[383838214,1757139063153,-168.0,0.00055017,2]
[383838215,1757139063163,-1801.05,0.00055026,14]
[383838216,1757139063174,-1724.8200173,0.00055042,2]
[383838217,1757139063184,-500.0,0.00055068,120]
[383838218,1757139063194,-188.78,0.00055141,120]
[383838219,1757139063204,-273.0,0.00055326,2]
[383838220,1757139063214,-500.0,0.00055342,120]
[383838221,1757139063224,-257.39848438,0.00055405,15]
[383838222,1757139063234,-500.0,0.00055441,120]
[383838223,1757139063244,-600.0,0.00055459,120]
[383838224,1757139063255,-168.0,0.00055537,2]
[383838225,1757139063266,-168.0,0.00055579,120]
[383838226,1757139063276,-500.0,0.00055616,120]
[383838227,1757139063286,-318.76252488,0.00055643,61]
[383838228,1757139063296,-500.0,0.0005573,120]
[383838229,1757139063306,-150.0,0.00055751,120]
[383838230,1757139063317,-150.0,0.00055785,120]
[383838231,1757139063327,-530.0,0.0005588,120]
[383838232,1757139063337,-338.24788523,0.0005589,120]
[383838233,1757139063347,-500.0,0.00055895,120]
[383838234,1757139063356,-150.0,0.00055999,120]
[383838235,1757139063366,-10000.0,0.00056,120]
[383838236,1757139063376,-1195.17,0.00056,60]
[383838237,1757139063386,-500000.0,0.00056,120]
[383838238,1757139063397,-500.0,0.00056092,120]
[383838239,1757139063407,-500.0,0.0005614,120]
[383838240,1757139063417,-288.54921028,0.00056164,120]
[383838241,1757139063428,-273.0,0.00056322,2]
[383838242,1757139063438,-150.0,0.00056357,120]
[383838243,1757139063448,-168.0,0.00056427,120]
[383838244,1757139063458,-500.0,0.00056535,120]
[383838245,1757139063468,-273.0,0.00056598,7]
[383838246,1757139063478,-273.0,0.00056651,30]
[383838247,1757139063488,-600.0,0.00056768,120]
[383838248,1757139063499,-1638.0,0.000568,120]
[383838249,1757139063510,-377.52,0.00056818,120]
[383838250,1757139063520,-1725.57923744,0.00056914,30]
[383838251,1757139063530,-495.93259244,0.00056914,2]
[383838252,1757139063539,-302.89409988,0.00056914,2]
[383838253,1757139063550,-1562.13076514,0.00056914,2]
[383838254,1757139063559,-500.0,0.0005695,120]
[383838255,1757139063569,-150.0,0.00056999,120]
[383838256,1757139063579,-10000.0,0.00057,120]
[383838257,1757139063589,-500000.0,0.00057,120]
[383838258,1757139063599,-600.0,0.00057014,120]
[383838259,1757139063609,-500.0,0.00057073,120]
[383838260,1757139063619,-151.0,0.000571,120]
[383838261,1757139063630,-168.0,0.00057305,2]
[383838262,1757139063639,-1127.0,0.00057372,2]
[383838263,1757139063650,-257.39848438,0.00057434,15]
[383838264,1757139063660,-273.0,0.00057452,2]
[383838265,1757139063670,-168.0,0.0005749,2]
[383838266,1757139063680,-168.0,0.00057496,7]
[383838267,1757139063689,-500.0,0.00057533,120]
[383838268,1757139063699,-463.43712967,0.00057533,120]
[383838269,1757139063709,-408.46172109,0.00057534,120]
[383838270,1757139063719,-405.2920364,0.00057534,120]
[383838271,1757139063729,-400.0,0.00057534,120]
[383838272,1757139063739,-401.74579225,0.00057534,120]
[383838273,1757139063749,-400.0,0.00057534,120]
[383838274,1757139063759,-400.0,0.00057534,120]
[383838275,1757139063769,-403.61694524,0.00057534,120]
[383838276,1757139063783,-400.0,0.00057534,120]
[383838277,1757139063793,-382.21605451,0.00057534,120]
[383838278,1757139063804,-400.0,0.00057534,120]
[383838279,1757139063814,-400.0,0.00057534,120]
[383838280,1757139063824,-404.94386401,0.00057534,7]
[383838281,1757139063833,-400.0,0.00057534,120]
[383838282,1757139063843,-400.0,0.00057534,2]
[383838283,1757139063853,-167.65389437,0.00057534,120]
[383838284,1757139063863,-400.0,0.00057534,120]
[383838285,1757139063873,-400.0,0.00057534,120]
[383838286,1757139063883,-400.0,0.00057534,120]
[383838287,1757139063893,-412.12160407,0.00057534,120]
[383838288,1757139063903,-400.0,0.00057534,120]
[383838289,1757139063913,-406.00359981,0.00057534,120]
[383838290,1757139063923,-400.0,0.00057534,120]
[383838291,1757139063933,-400.0,0.00057534,120]
[383838292,1757139063943,-400.0,0.00057534,120]
[383838293,1757139063953,-402.83512403,0.00057534,120]
[383838294,1757139063962,-400.0,0.00057534,120]
[383838295,1757139063973,-413.82121563,0.00057534,120]
[383838296,1757139063982,-400.0,0.00057534,120]
[383838297,1757139063992,-400.0,0.00057534,120]
[383838298,1757139064002,-405.04193396,0.00057534,120]
[383838299,1757139064012,-400.0,0.00057534,120]
[383838300,1757139064021,-405.88616848,0.00057534,120]
[383838301,1757139064031,-400.0,0.00057534,120]
[383838302,1757139064040,-400.0,0.00057534,120]
[383838303,1757139064050,-403.03182146,0.00057534,120]
[383838304,1757139064060,-402.33691886,0.00057534,120]
[383838305,1757139064069,-400.0,0.00057534,120]
[383838306,1757139064079,-407.33006625,0.00057534,120]
[383838307,1757139064087,-400.0,0.00057534,120]
[383838308,1757139064096,-401.70343396,0.00057534,120]
[383838309,1757139064105,-402.75563921,0.00057534,120]
[383838310,1757139064114,-400.0,0.00057534,120]
[383838311,1757139064123,-400.0,0.00057534,120]
[383838312,1757139064132,-409.64038907,0.00057534,120]
[383838313,1757139064141,-405.20113819,0.00057534,120]
[383838314,1757139064150,-412.12694251,0.00057534,120]
[383838315,1757139064160,-400.0,0.00057534,120]
[383838316,1757139064169,-408.39357909,0.00057534,120]
[383838317,1757139064179,-400.0,0.00057534,120]
[383838318,1757139064189,-400.87111914,0.00057534,120]
[383838319,1757139064199,-400.0,0.00057534,120]
[383838320,1757139064209,-400.0,0.00057534,120]
[383838321,1757139064218,-162.53636128,0.00057534,120]
[383838322,1757139064227,-533.20865622,0.00057534,120]
[383838323,1757139064238,-401.83989339,0.00057534,120]
[383838324,1757139064248,-408.40210605,0.00057534,120]
[383838325,1757139064259,-402.92630169,0.00057534,120]
[383838326,1757139064270,-400.0,0.00057534,120]
[383838327,1757139064280,-409.94681269,0.00057534,120]
[383838328,1757139064290,-400.0,0.00057534,120]
[383838329,1757139064300,-400.0,0.00057534,120]
[383838330,1757139064309,-400.0,0.00057534,120]
[383838331,1757139064320,-400.0,0.00057534,120]
[383838332,1757139064330,-400.0,0.00057534,120]
[383838333,1757139064340,-400.0,0.00057534,120]
[383838334,1757139064350,-402.27438601,0.00057534,120]
[383838335,1757139064360,-400.0,0.00057534,120]
[383838336,1757139064370,-400.0,0.00057534,120]
[383838337,1757139064384,-404.18885488,0.00057534,120]
[383838338,1757139064394,-403.10225537,0.00057534,120]
[383838339,1757139064404,-403.7241048,0.00057534,120]
[383838340,1757139064415,-411.99432546,0.00057534,120]
[383838341,1757139064426,-410.56786271,0.00057534,120]
[383838342,1757139064438,-405.567265,0.00057534,120]
[383838343,1757139064448,-402.13491214,0.00057534,120]
[383838344,1757139064461,-400.0,0.00057534,120]
[383838345,1757139064471,-400.0,0.00057534,120]
[383838346,1757139064482,-402.87260733,0.00057534,120]
[383838347,1757139064491,-401.55704535,0.00057534,120]
[383838348,1757139064501,-416.99262684,0.00057534,120]
[383838349,1757139064510,-402.87922631,0.00057534,120]
[383838350,1757139064520,-414.59963908,0.00057534,120]
[383838351,1757139064530,-400.0,0.00057534,120]
[383838352,1757139064539,-408.91882291,0.00057534,120]
[383838353,1757139064552,-400.0,0.00057534,120]
[383838354,1757139064563,-403.99802227,0.00057534,120]
[383838355,1757139064572,-400.0,0.00057534,90]
[383838356,1757139064582,-400.0,0.00057534,120]
[383838357,1757139064591,-409.3443423,0.00057534,120]
[383838358,1757139064601,-403.32911038,0.00057534,120]
[383838359,1757139064611,-400.0,0.00057534,120]
[383838360,1757139064620,-408.86659822,0.00057534,120]
[383838361,1757139064629,-400.0,0.00057534,120]
[383838362,1757139064638,-408.81989536,0.00057534,120]
[383838363,1757139064652,-400.0,0.00057534,120]
[383838364,1757139064662,-400.0,0.00057534,120]
[383838365,1757139064671,-400.0,0.00057534,120]
[383838366,1757139064681,-405.87516237,0.00057534,120]
[383838367,1757139064691,-400.0,0.00057534,120]
[383838368,1757139064700,-405.32744829,0.00057534,120]
[383838369,1757139064710,-400.0,0.00057534,120]
[383838370,1757139064720,-407.67648533,0.00057534,120]
[383838371,1757139064730,-400.0,0.00057534,120]
[383838372,1757139064740,-407.66763212,0.00057534,120]
[383838373,1757139064751,-400.0,0.00057534,120]
[383838374,1757139064761,-408.42767629,0.00057534,120]
[383838375,1757139064771,-406.67916877,0.00057534,120]
[383838376,1757139064780,-400.0,0.00057534,120]
[383838377,1757139064790,-389.85679722,0.00057534,120]
[383838378,1757139064800,-402.10975448,0.00057534,120]
[383838379,1757139064810,-400.0,0.00057534,120]
[383838380,1757139064820,-400.0,0.00057534,120]
[383838381,1757139064830,-404.57008539,0.00057534,120]
[383838382,1757139064841,-404.65442494,0.00057534,120]
[383838383,1757139064851,-408.71842796,0.00057534,120]
[383838384,1757139064861,-402.78253489,0.00057534,120]
[383838385,1757139064871,-400.0,0.00057534,120]
[383838386,1757139064881,-403.53488498,0.00057534,120]
[383838387,1757139064891,-409.61385154,0.00057534,120]
[383838388,1757139064901,-400.0,0.00057534,120]
[383838389,1757139064911,-400.0,0.00057534,120]
[383838390,1757139064920,-403.04406145,0.00057534,120]
[383838391,1757139064930,-414.24095518,0.00057534,120]
[383838392,1757139064940,-404.12979157,0.00057534,120]
[383838393,1757139064950,-409.68243779,0.00057534,12]
[383838394,1757139064960,-403.60815579,0.00057534,120]
[383838395,1757139064969,-400.0,0.00057534,120]
[383838396,1757139064979,-400.0,0.00057534,120]
[383838397,1757139064989,-406.81484012,0.00057534,120]
[383838398,1757139064999,-400.0,0.00057534,120]
[383838399,1757139065008,-400.0,0.00057534,120]
[383838400,1757139065018,-397.60310011,0.00057534,120]
[383838401,1757139065028,-400.0,0.00057534,120]
[383838402,1757139065038,-403.66556434,0.00057534,120]
[383838403,1757139065048,-405.92909583,0.00057534,120]
[383838404,1757139065058,-400.0,0.00057534,120]
[383838405,1757139065068,-414.07633949,0.00057534,120]
[383838406,1757139065078,-404.23400886,0.00057534,120]
[383838407,1757139065087,-400.0,0.00057534,120]
[383838408,1757139065097,-408.93759966,0.00057534,120]
[383838409,1757139065106,-405.43954912,0.00057534,120]
[383838410,1757139065116,-400.0,0.00057534,120]
[383838411,1757139065126,-400.0,0.00057534,120]
[383838412,1757139065135,-400.0,0.00057534,120]
[383838413,1757139065144,-404.09991076,0.00057534,120]
[383838414,1757139065154,-400.0,0.00057534,120]
[383838415,1757139065163,-400.0,0.00057534,120]
[383838416,1757139065174,-403.37113488,0.00057534,120]
[383838417,1757139065183,-402.75730558,0.00057534,120]
[383838418,1757139065194,-400.0,0.00057534,120]
[383838419,1757139065203,-403.26295877,0.00057534,120]
[383838420,1757139065213,-403.64222418,0.00057534,120]
[383838421,1757139065223,-400.0,0.00057534,120]
[383838422,1757139065233,-410.91430386,0.00057534,120]
[383838423,1757139065242,-400.0,0.00057534,120]
[383838424,1757139065252,-404.65779463,0.00057534,120]
[383838425,1757139065263,-400.0,0.00057534,120]
[383838426,1757139065273,-400.0,0.00057534,120]
[383838427,1757139065283,-403.67280807,0.00057534,120]
[383838428,1757139065293,-409.86430284,0.00057534,120]
[383838429,1757139065303,-403.06807906,0.00057534,120]
[383838430,1757139065312,-400.0,0.00057534,120]
[383838431,1757139065322,-300.0,0.00057534,120]
[383838432,1757139065331,-400.0,0.00057534,120]
[383838433,1757139065341,-407.28536078,0.00057534,120]
[383838434,1757139065351,-400.0,0.00057534,120]
[383838435,1757139065361,-410.14492303,0.00057534,120]
[383838436,1757139065370,-400.0,0.00057534,120]
[383838437,1757139065537,-400.0,0.00057534,120]
[383838438,1757139065550,-405.55323723,0.00057534,120]
[383838439,1757139065560,-400.0,0.00057534,120]
[383838440,1757139065571,-402.72516846,0.00057534,120]
[383838441,1757139065581,-400.0,0.00057534,120]
[383838442,1757139065590,-400.0,0.00057534,120]
[383838443,1757139065599,-405.81759182,0.00057534,120]
[383838444,1757139065608,-404.53159579,0.00057534,120]
[383838445,1757139065618,-403.33714915,0.00057534,120]
[383838446,1757139065627,-403.07531453,0.00057534,120]
[383838447,1757139065637,-403.39875315,0.00057534,120]
[383838448,1757139065647,-402.45815397,0.00057534,120]
[383838449,1757139065656,-403.41215862,0.00057534,120]
[383838450,1757139065665,-404.58007112,0.00057534,120]
[383838451,1757139065674,-406.34210222,0.00057534,120]
[383838452,1757139065684,-400.0,0.00057534,120]
[383838453,1757139065693,-400.0,0.00057534,120]
[383838454,1757139065703,-413.73163377,0.00057534,120]
[383838455,1757139065713,-400.0,0.00057534,120]
[383838456,1757139065723,-417.00082783,0.00057534,120]
[383838457,1757139065732,-400.0,0.00057534,120]
[383838458,1757139065741,-400.0,0.00057534,120]
[383838459,1757139065752,-400.0,0.00057534,120]
[383838460,1757139065763,-400.0,0.00057534,120]
[383838461,1757139065772,-408.75328933,0.00057534,120]
[383838462,1757139065782,-404.84278006,0.00057534,120]
[383838463,1757139065791,-500.0,0.00057534,120]
[383838464,1757139065801,-405.19622723,0.00057534,120]
[383838465,1757139065811,-400.0,0.00057534,120]
[383838466,1757139065820,-400.0,0.00057534,120]
[383838467,1757139065829,-412.72673479,0.00057534,120]
[383838468,1757139065840,-414.17265667,0.00057534,120]
[383838469,1757139065850,-423.63617551,0.00057534,120]
[383838470,1757139065860,-400.0,0.00057534,120]
[383838471,1757139065870,-402.48242597,0.00057534,120]
[383838472,1757139065882,-403.90813783,0.00057534,120]
[383838473,1757139065891,-400.0,0.00057534,120]
[383838474,1757139065902,-413.82116715,0.00057534,120]
[383838475,1757139065912,-426.89476151,0.00057534,120]
[383838476,1757139065922,-327.72772449,0.00057534,120]
[383838477,1757139065932,-400.0,0.00057534,120]
[383838478,1757139065941,-400.0,0.00057534,120]
[383838479,1757139065951,-410.11675916,0.00057534,120]
[383838480,1757139065961,-400.0,0.00057534,120]
[383838481,1757139065970,-400.0,0.00057534,120]
[383838482,1757139065979,-400.0,0.00057534,120]
[383838483,1757139065992,-408.57999948,0.00057534,120]
[383838484,1757139066002,-404.13295678,0.00057534,120]
[383838485,1757139066012,-403.35059751,0.00057534,120]
[383838486,1757139066021,-456.67573238,0.00057534,120]
[383838487,1757139066031,-400.0,0.00057534,120]
[383838488,1757139066041,-400.0,0.00057534,120]
[383838489,1757139066051,-400.0,0.00057534,120]
[383838490,1757139066061,-410.57069834,0.00057534,120]
[383838491,1757139066071,-456.3034597,0.00057534,120]
[383838492,1757139066080,-400.0,0.00057534,120]
[383838493,1757139066090,-518.32768856,0.00057534,120]
[383838494,1757139066099,-405.12041989,0.00057534,120]
[383838495,1757139066109,-400.0,0.00057534,120]
[383838496,1757139066118,-400.0,0.00057534,120]
[383838497,1757139066128,-400.0,0.00057534,120]
[383838498,1757139066140,-400.0,0.00057534,120]
[383838499,1757139066150,-400.0,0.00057534,120]
[383838500,1757139066160,-412.92522518,0.00057534,120]
[383838501,1757139066170,-400.0,0.00057534,120]
[383838502,1757139066179,-400.0,0.00057534,120]
[383838503,1757139066188,-400.0,0.00057534,120]
[383838504,1757139066198,-400.0,0.00057534,120]
[383838505,1757139066207,-400.0,0.00057534,120]
[383838506,1757139066216,-410.98099353,0.00057534,120]
[383838507,1757139066226,-418.57962963,0.00057534,120]
[383838508,1757139066237,-406.6169045,0.00057534,120]
[383838509,1757139066248,-400.0,0.00057534,120]
[383838510,1757139066258,-402.95386319,0.00057534,120]
[383838511,1757139066268,-400.0,0.00057534,120]
[383838512,1757139066277,-400.0,0.00057534,120]
[383838513,1757139066288,-406.16326711,0.00057534,120]
[383838514,1757139066297,-400.0,0.00057534,120]
[383838515,1757139066307,-400.0,0.00057534,120]
[383838516,1757139066318,-400.0,0.00057534,120]
[383838517,1757139066328,-400.0,0.00057534,120]
[383838518,1757139066337,-404.55554432,0.00057534,120]
[383838519,1757139066348,-400.0,0.00057534,120]
[383838520,1757139066359,-404.375626,0.00057534,120]
[383838521,1757139066369,-542.72,0.00057534,120]
[383838522,1757139066382,-400.0,0.00057534,120]
[383838523,1757139066400,-404.21936398,0.00057534,120]
[383838524,1757139066412,-400.0,0.00057534,120]
[383838525,1757139066424,-400.0,0.00057534,120]
[383838526,1757139066435,-400.0,0.00057534,120]
[383838527,1757139066444,-400.0,0.00057534,120]
[383838528,1757139066454,-400.0,0.00057534,120]
[383838529,1757139066464,-414.06395148,0.00057534,120]
[383838530,1757139066474,-400.0,0.00057534,120]
[383838531,1757139066484,-400.0,0.00057534,120]
[383838532,1757139066493,-400.0,0.00057534,120]
[383838533,1757139066506,-402.55440819,0.00057534,120]
[383838534,1757139066519,-400.0,0.00057534,120]
[383838535,1757139066529,-411.17181249,0.00057534,120]
[383838536,1757139066538,-400.0,0.00057534,120]
[383838537,1757139066548,-405.72508294,0.00057534,120]
[383838538,1757139066558,-400.0,0.00057534,120]
[383838539,1757139066567,-400.0,0.00057534,120]
[383838540,1757139066577,-404.39668077,0.00057534,120]
[383838541,1757139066587,-400.0,0.00057534,120]
[383838542,1757139066596,-400.0,0.00057534,120]
[383838543,1757139066606,-400.0,0.00057534,120]
[383838544,1757139066615,-400.0,0.00057534,120]
[383838545,1757139066625,-400.0,0.00057534,120]
[383838546,1757139066634,-482.22,0.00057534,120]
[383838547,1757139066644,-400.0,0.00057534,120]
[383838548,1757139066654,-400.0,0.00057534,120]
[383838549,1757139066664,-400.0,0.00057534,120]
[383838550,1757139066674,-402.6974271,0.00057534,120]
[383838551,1757139066684,-400.0,0.00057534,120]
[383838552,1757139066693,-400.0,0.00057534,120]
[383838553,1757139066703,-400.0,0.00057534,120]
[383838554,1757139066712,-400.0,0.00057534,120]
[383838555,1757139066722,-403.22886629,0.00057534,120]
[383838556,1757139066732,-178.14949265,0.00057534,120]
[383838557,1757139066742,-400.0,0.00057534,120]
[383838558,1757139066752,-436.05073559,0.00057534,120]
[383838559,1757139066762,-402.91787975,0.00057534,120]
[383838560,1757139066772,-400.0,0.00057534,120]
[383838561,1757139066782,-401.28505849,0.00057534,120]
[383838562,1757139066792,-400.0,0.00057534,120]
[383838563,1757139066802,-413.79841565,0.00057534,120]
[383838564,1757139066812,-400.0,0.00057534,120]
[383838565,1757139066822,-400.0,0.00057534,120]
[383838566,1757139066832,-400.0,0.00057534,120]
[383838567,1757139066841,-403.52129064,0.00057534,120]
[383838568,1757139066851,-400.0,0.00057534,120]
[383838569,1757139066860,-400.0,0.00057534,120]
[383838570,1757139066870,-400.0,0.00057534,120]
[383838571,1757139066879,-402.13537098,0.00057534,120]
[383838572,1757139066889,-405.13459365,0.00057534,120]
[383838573,1757139066899,-400.0,0.00057534,120]
[383838574,1757139066909,-402.63800007,0.00057534,120]
[383838575,1757139066919,-400.0,0.00057534,120]
[383838576,1757139066928,-402.90444311,0.00057534,120]
[383838577,1757139066938,-403.59488019,0.00057534,120]
[383838578,1757139066947,-500.67,0.00057534,120]
[383838579,1757139066957,-400.0,0.00057534,120]
[383838580,1757139066966,-400.0,0.00057534,120]
[383838581,1757139066975,-400.0,0.00057534,120]
[383838582,1757139066985,-400.0,0.00057534,120]
[383838583,1757139066994,-535.93993681,0.00057534,120]
[383838584,1757139067004,-400.0,0.00057534,120]
[383838585,1757139067015,-400.0,0.00057534,120]
[383838586,1757139067024,-439.4975388,0.00057534,120]
[383838587,1757139067034,-405.02008914,0.00057534,120]
[383838588,1757139067043,-405.19649157,0.00057534,120]
[383838589,1757139067052,-400.0,0.00057534,120]
[383838590,1757139067062,-408.00308416,0.00057534,120]
[383838591,1757139067071,-400.0,0.00057534,120]
[383838592,1757139067080,-400.0,0.00057534,120]
[383838593,1757139067090,-402.03490833,0.00057534,120]
[383838594,1757139067099,-407.36414999,0.00057534,120]
[383838595,1757139067109,-400.0,0.00057534,120]
[383838596,1757139067118,-400.0,0.00057534,120]
[383838597,1757139067127,-400.0,0.00057534,120]
[383838598,1757139067136,-400.0,0.00057534,120]
[383838599,1757139067146,-400.0,0.00057534,120]
[383838600,1757139067156,-400.0,0.00057534,120]
[383838601,1757139067165,-389.82046215,0.00057534,120]
[383838602,1757139067175,-400.0,0.00057534,120]
[383838603,1757139067184,-452.6228682,0.00057534,120]
[383838604,1757139067194,-400.0,0.00057534,120]
[383838605,1757139067203,-400.0,0.00057534,120]
[383838606,1757139067212,-405.23697851,0.00057534,30]
[383838607,1757139067221,-400.0,0.00057534,120]
[383838608,1757139067231,-408.61855956,0.00057534,120]
[383838609,1757139067240,-400.0,0.00057534,120]
[383838610,1757139067250,-414.52855262,0.00057534,120]
[383838611,1757139067259,-400.0,0.00057534,120]
[383838612,1757139067271,-405.17682422,0.00057534,120]
[383838613,1757139067280,-400.0,0.00057534,120]
[383838614,1757139067289,-400.0,0.00057534,120]
[383838615,1757139067299,-405.47490244,0.00057534,120]